bitfinex/quotes_ETHUSD_20241116
["timestamp","ask_amount","ask_price","bid_price","bid_amount"]
[1731716174890,3.24926,3077.7,3077.0,0.402994]
[1731716175168,3.24926,3077.7,3077.2,0.78]
[1731716175327,3.249,3077.9,3077.2,4.02961]
[1731716175771,3.24908,3077.8,3077.2,4.02961]
[1731716175991,3.249,3077.9,3077.2,4.02961]
[1731716176142,3.249,3077.9,3077.3,3.0]
[1731716176344,3.2491,3077.8,3077.3,3.0]
[1731716176545,3.24879,3078.1,3077.3,3.0]
[1731716176779,3.24898,3077.9,3077.3,3.0]
[1731716177728,3.24919,3077.7,3077.2,0.78]
[1731716177982,6.49822,3077.8,3077.2,3.78]
[1731716178394,3.24908,3077.8,3077.2,3.78]
[1731716178601,3.24888,3078.0,3077.2,3.78]
[1731716178602,3.24866,3078.2,3077.2,3.78]
[1731716178754,3.24887,3078.0,3077.4,3.0]
[1731716179099,3.24887,3078.0,3077.4,3.24942]
[1731716179254,3.24897,3077.9,3077.4,3.24942]
[1731716179593,3.24991,3077.0,3076.3,0.78]
[1731716179797,3.25022,3076.8,3076.3,0.78]
[1731716180497,3.25078,3076.2,3075.6,0.78]
[1731716181057,3.25035,3076.6,3075.9,3.25106]
[1731716181623,3.25055,3076.4,3075.7,3.25119]
[1731716181955,3.25035,3076.6,3075.8,3.0]
[1731716182244,3.25035,3076.6,3075.9,3.25105]
[1731716182667,0.2336,3076.8,3076.1,3.25086]
[1731716182668,3.25015,3076.8,3076.1,3.25086]
[1731716182997,12.4793702,3077.4,3076.4,0.78]
[1731716182998,3.24998,3077.0,3076.4,0.78]
[1731716183410,3.24971,3077.2,3076.4,3.84500697]
[1731716183702,3.24971,3077.2,3076.5,3.25041]
[1731716184047,3.24983,3077.1,3076.5,3.25041]
[1731716185154,3.24951,3077.4,3076.8,0.7944]
[1731716185348,3.24963,3077.3,3076.8,0.7944]
[1731716185583,3.24945,3077.5,3076.9,3.25001]
[1731716185797,3.24916,3077.8,3076.9,3.25001]
[1731716186024,3.24952,3077.4,3076.8,3.7944]
[1731716186206,3.24952,3077.4,3076.8,4.198862]
[1731716186356,3.24929,3077.6,3076.9,3.24995]
[1731716186552,3.24929,3077.6,3076.9,3.6698362]
[1731716186974,3.24929,3077.6,3076.9,3.73482918]
[1731716187172,3.24929,3077.6,3077.0,3.24991]
[1731716187389,3.24911,3077.8,3077.1,3.2498]
[1731716187572,3.24922,3077.7,3077.1,3.2498]
[1731716188100,3.24922,3077.7,3077.2,0.7944]
[1731716188904,3.24904,3077.9,3077.3,3.24958]
[1731716190111,6.49759,3078.1,3077.4,3.24949]
[1731716190408,3.24876,3078.1,3077.3,3.0]
[1731716190612,3.24923,3077.7,3077.2,0.7944]
[1731716190818,3.24897,3077.9,3077.3,3.0]
[1731716191112,3.24897,3077.9,3077.2,1.49882]
[1731716191314,0.2336,3078.6,3077.2,0.7944]
[1731716191315,3.24939,3077.5,3077.2,0.7944]
[1731716191516,3.24939,3077.5,3076.4,3.25054]
[1731716191517,3.24992,3077.0,3076.5,0.7944]
[1731716191675,3.24978,3077.2,3076.5,4.44926]
[1731716192007,3.24978,3077.2,3076.6,3.25033]
[1731716193055,3.24978,3077.2,3076.7,3.25022]
[1731716193258,0.2336,3077.6,3076.6,3.25033]
[1731716193459,3.24947,3077.5,3076.9,7.04435]
[1731716193705,3.24924,3077.7,3076.9,7.04435]
[1731716193706,3.24952,3077.4,3076.9,0.7944]
[1731716193909,3.24963,3077.3,3076.9,0.7944]
[1731716194058,3.2494,3077.5,3076.9,4.2183322]
[1731716194581,3.24968,3077.3,3076.9,1.2183322]
[1731716194886,3.24949,3077.4,3076.9,0.7944]
[1731716195078,3.24943,3077.5,3076.9,1.2183322]
[1731716195274,3.24943,3077.5,3076.9,4.4683422]
[1731716195487,3.24943,3077.5,3077.0,3.0]
[1731716196095,3.2495,3077.4,3077.0,3.0]
[1731716196302,0.63350561,3078.4,3077.0,3.0]
[1731716196303,3.24945,3077.5,3077.1,0.7944]
[1731716196613,3.24959,3077.4,3077.1,0.7944]
[1731716196970,3.24929,3077.6,3077.1,0.7944]
[1731716197596,3.25002,3076.9,3076.8,0.7944]
[1731716197814,3.24988,3077.1,3076.5,0.7944]
[1731716198011,3.24994,3077.0,3076.5,0.7944]
[1731716198309,3.24977,3077.2,3076.6,3.25033]
[1731716198510,3.24977,3077.2,3076.7,3.25022]
[1731716198863,3.24977,3077.2,3076.6,3.0]
[1731716199060,0.55853,3077.6,3076.8,3.25011]
[1731716199061,3.48288,3077.6,3076.8,3.25011]
[1731716199265,3.48288,3077.6,3076.0,0.01]
[1731716199266,3.24929,3077.6,3077.1,3.24981]
[1731716199521,3.24929,3077.6,3077.1,4.279215]
[1731716199822,3.24951,3077.4,3077.1,1.029405]
[1731716200016,3.24951,3077.4,3077.0,0.7944]
[1731716200321,3.24929,3077.6,3077.0,0.7944]
[1731716200463,3.24958,3077.4,3077.0,0.7944]
[1731716201139,3.24929,3077.6,3077.0,4.0443]
[1731716201260,3.24929,3077.6,3077.0,5.073741]
[1731716201678,6.49867,3077.6,3077.0,5.073741]
[1731716202274,3.24973,3077.2,3076.9,3.0]
[1731716202475,0.2336,3078.0,3076.7,0.7944]
[1731716202476,3.25003,3076.9,3076.7,0.7944]
[1731716203219,3.24983,3077.1,3076.7,0.7944]
[1731716203364,3.2501,3076.9,3076.7,0.7944]
[1731716203704,6.49974,3077.1,3076.7,0.7944]
[1731716203866,3.25003,3076.9,3076.7,0.7944]
[1731716204478,3.24983,3077.1,3076.7,0.7944]
[1731716204696,3.24998,3077.0,3076.7,0.7944]
[1731716205260,3.24957,3077.4,3076.7,4.04455]
[1731716205456,3.24957,3077.4,3076.8,3.654555]
[1731716206015,3.24957,3077.4,3076.8,3.654515]
[1731716206454,3.24961,3077.3,3076.8,3.654515]
[1731716207318,0.2336,3078.0,3076.8,3.654505]
[1731716207319,3.24946,3077.5,3076.8,3.654505]
[1731716207515,3.24946,3077.5,3077.0,4.02028]
[1731716208245,3.24946,3077.5,3077.0,0.7704]
[1731716208464,3.24951,3077.4,3077.0,1.25737965]
[1731716208667,3.48251,3078.0,3077.0,1.25737965]
[1731716208668,3.24936,3077.6,3077.0,1.25737965]
[1731716209567,3.24948,3077.5,3077.0,1.25737965]
[1731716209896,3.24948,3077.5,3077.1,0.75073896]
[1731716211383,3.24919,3077.7,3077.1,4.00052896]
[1731716212134,3.24935,3077.6,3077.1,0.75073896]
[1731716212334,3.24935,3077.6,3077.2,0.20081186]
[1731716213178,3.24867,3078.2,3077.2,0.20081186]
[1731716213179,4.68550829,3078.4,3077.3,0.7704]
[1731716213496,3.24893,3078.0,3077.3,0.7704]
[1731716213799,3.24869,3078.2,3077.4,3.0]
[1731716214000,3.24869,3078.2,3077.4,6.24943]
[1731716214158,6.49743,3078.2,3077.5,1.026934]
[1731716214359,3.24877,3078.1,3077.5,1.026934]
[1731716215097,3.24903,3077.9,3077.5,1.026934]
[1731716215404,3.24903,3077.9,3077.4,3.0]
[1731716216063,3.2487,3078.2,3077.4,6.24947]
[1731716216261,3.2487,3078.2,3077.4,3.0]
[1731716216262,3.24888,3078.0,3077.4,3.0]
[1731716216492,3.24888,3078.0,3077.6,3.0]
[1731716217420,3.24888,3078.0,3077.7,0.7704]
[1731716218108,3.2487,3078.2,3077.7,0.7704]
[1731716218109,6.49743,3078.2,3077.7,0.7704]
[1731716218406,3.24882,3078.1,3077.7,0.7704]
[1731716219179,3.249,3077.9,3077.7,0.7704]
[1731716219465,6.49767,3078.1,3077.7,0.7704]
[1731716219664,3.24882,3078.1,3077.7,0.7704]
[1731716220061,3.24901,3077.9,3077.7,0.7704]
[1731716220563,6.49762,3078.1,3077.7,0.7704]
[1731716220766,3.2488,3078.1,3077.7,0.7704]
[1731716221071,3.24907,3077.8,3077.7,0.7704]
[1731716221370,3.24891,3078.0,3077.7,0.7704]
[1731716222629,3.24869,3078.2,3077.7,0.7704]
[1731716222832,3.24876,3078.1,3077.7,0.7704]
[1731716223463,3.24887,3078.0,3077.7,0.7704]
[1731716223676,3.24887,3078.0,3077.7,1.472378]
[1731716224258,3.24869,3078.2,3077.7,4.472378]
[1731716224492,3.24879,3078.1,3077.7,1.472378]
[1731716224649,3.24879,3078.1,3077.8,1.2140378]
[1731716226391,3.24928,3077.6,3077.5,0.7668]
[1731716226615,3.24969,3077.3,3076.7,0.7668]
[1731716226750,3.24969,3077.3,3076.8,0.3888811]
[1731716226948,3.24969,3077.3,3076.7,4.01699]
[1731716226949,3.24972,3077.2,3076.7,4.01701]
[1731716227261,3.2495,3077.4,3076.8,3.25012]
[1731716227507,3.2495,3077.4,3076.8,3.651821]
[1731716228088,3.24931,3077.6,3076.8,3.401701]
[1731716228252,3.24869,3078.2,3077.6,0.7668]
[1731716228588,3.24849,3078.4,3077.8,3.249]
[1731716228792,3.24849,3078.4,3078.0,0.7668]
[1731716229001,3.19849,3078.4,3078.0,0.7668]
[1731716229305,3.24854,3078.3,3078.0,0.7668]
[1731716229453,6.49678,3078.5,3078.0,0.7668]
[1731716229792,3.24844,3078.4,3078.1,0.37668]
[1731716231153,3.24823,3078.6,3078.1,3.62543]
[1731716231374,3.24823,3078.6,3078.0,0.7668]
[1731716231601,3.24803,3078.8,3078.1,3.31370724]
[1731716231775,3.24825,3078.6,3078.1,3.24874]
[1731716231985,3.24825,3078.6,3078.2,0.401554]
[1731716232631,3.24825,3078.6,3078.1,3.0]
[1731716232774,6.49613,3078.8,3078.1,6.24873]
[1731716232977,3.24815,3078.7,3078.1,6.24873]
[1731716233221,3.24815,3078.7,3078.2,0.701553]
[1731716233518,3.24782,3079.0,3078.3,0.7668]
[1731716233722,3.24782,3079.0,3078.5,3.0]
[1731716236218,3.24762,3079.2,3078.7,0.7668]
[1731716236519,3.24762,3079.2,3078.7,1.4683]
[1731716236681,3.24781,3079.0,3078.7,1.4683]
[1731716237377,3.24762,3079.2,3078.7,1.4683]
[1731716237879,3.24743,3079.4,3078.7,4.4683]
[1731716238078,3.2472,3079.6,3078.9,3.0]
[1731716238301,3.24701,3079.8,3079.1,0.7668]
[1731716238614,0.2336,3080.1,3079.1,0.7668]
[1731716238840,3.24709,3079.7,3079.1,7.01447]
[1731716240112,3.24717,3079.6,3079.1,3.7668]
[1731716240423,3.24717,3079.6,3079.1,0.7668]
[1731716240646,3.24717,3079.6,3079.1,1.168263]
[1731716240944,3.24729,3079.5,3079.1,1.168263]
[1731716241103,3.24729,3079.5,3079.1,0.7668]
[1731716241305,3.24709,3079.7,3079.1,0.7668]
[1731716241628,3.24709,3079.7,3079.2,3.0]
[1731716242098,3.24664,3080.2,3079.4,3.7668]
[1731716242306,3.24633,3080.4,3079.7,3.24698]
[1731716242555,3.24633,3080.4,3079.9,0.7668]
[1731716243241,3.24615,3080.6,3079.9,0.7668]
[1731716243444,3.24615,3080.6,3080.0,3.24672]
[1731716244555,6.72551,3080.8,3080.1,3.24662]
[1731716244853,3.24594,3080.8,3080.1,3.24662]
[1731716245082,3.24604,3080.7,3080.1,3.24662]
[1731716245343,3.895107,3080.8,3080.1,3.24662]
[1731716245546,3.895107,3080.8,3080.0,3.31165835]
[1731716245547,3.24594,3080.8,3080.0,3.31165835]
[1731716245717,3.2462,3080.6,3079.9,0.7668]
[1731716246040,3.2462,3080.6,3080.0,6.24675]
[1731716246739,3.24594,3080.8,3080.1,3.31150603]
[1731716247038,3.24602,3080.7,3080.1,3.31150603]
[1731716247240,3.24602,3080.7,3080.1,3.24658]
[1731716247448,6.49195,3080.8,3080.1,3.24658]
[1731716247742,3.24594,3080.8,3080.1,4.2726]
[1731716247948,3.24574,3081.0,3080.4,4.01656]
[1731716248156,3.24552,3081.2,3080.5,3.972438]
[1731716248445,3.24552,3081.2,3080.6,3.24609]
[1731716248621,3.24552,3081.2,3080.6,3.0]
[1731716248815,3.24559,3081.1,3080.6,3.0]
[1731716249035,3.24552,3081.2,3080.6,3.701644]
[1731716249349,3.24571,3081.0,3080.6,0.701644]
[1731716249651,3.24552,3081.2,3080.6,3.2461]
[1731716250197,3.24552,3081.2,3080.7,3.0]
[1731716250364,3.24543,3081.3,3080.7,6.24601]
[1731716250563,3.24531,3081.4,3080.8,0.7703]
[1731716250564,3.24549,3081.2,3080.8,0.7703]
[1731716250889,3.24531,3081.4,3080.8,0.7703]
[1731716251046,3.24541,3081.3,3080.8,0.7703]
[1731716251245,3.24558,3081.2,3080.8,0.7703]
[1731716251470,3.24566,3081.1,3080.8,0.7703]
[1731716251652,3.24539,3081.3,3080.8,0.7703]
[1731716252151,3.2452,3081.5,3080.9,0.06491295]
[1731716252357,3.2452,3081.5,3080.9,3.06491295]
[1731716252693,3.2452,3081.5,3080.9,3.0]
[1731716252991,3.2452,3081.5,3080.9,3.701614]
[1731716253190,3.2452,3081.5,3080.9,6.947394]
[1731716253963,3.2452,3081.5,3080.9,3.947394]
[1731716254162,3.24499,3081.7,3080.9,3.947394]
[1731716254411,3.24508,3081.6,3081.1,0.7703]
[1731716254571,3.24499,3081.7,3081.1,0.7703]
[1731716254572,3.24499,3081.7,3081.1,4.01587]
[1731716254782,3.24476,3081.9,3081.2,3.0]
[1731716255004,3.24476,3081.9,3081.2,3.4729814]
[1731716255303,3.24476,3081.9,3081.4,0.8041]
[1731716256010,3.24476,3081.9,3081.4,0.86899824]
[1731716257267,3.24487,3081.8,3081.4,0.86899824]
[1731716257484,3.24487,3081.8,3081.4,0.8041]
[1731716257994,3.24471,3082.0,3081.4,1.22531777]
[1731716258194,3.24476,3081.9,3081.4,4.22531777]
[1731716258372,3.24476,3081.9,3081.5,0.7535596]
[1731716258717,3.24476,3081.9,3081.1,3.24552]
[1731716258718,3.24532,3081.4,3080.9,0.8041]
[1731716258899,6.4907,3081.4,3080.9,0.8041]
[1731716259067,3.2454,3081.3,3080.9,0.8041]
[1731716259267,3.24532,3081.4,3080.9,0.8041]
[1731716259604,3.24532,3081.4,3080.9,1.509104]
[1731716259605,3.24548,3081.3,3080.9,1.509104]
[1731716260011,3.24511,3081.6,3080.9,0.8041]
[1731716260187,3.24525,3081.5,3080.9,0.8041]
[1731716260680,3.24527,3081.4,3080.9,4.04988]
[1731716260879,3.24541,3081.3,3080.9,1.209105]
[1731716261474,3.24527,3081.4,3080.9,1.209105]
[1731716261701,3.24561,3081.1,3080.9,0.8041]
[1731716261895,3.24555,3081.2,3080.9,0.8041]
[1731716262573,3.24529,3081.4,3080.9,0.8041]
[1731716262776,6.49064,3081.4,3080.9,1.50911]
[1731716262979,3.24541,3081.3,3080.9,1.50911]
[1731716263303,3.24559,3081.2,3080.9,1.50911]
[1731716263614,3.2449,3081.8,3080.9,1.50911]
[1731716263615,3.24521,3081.5,3080.9,0.8041]
[1731716263800,3.24521,3081.5,3080.6,3.0]
[1731716263801,3.24499,3081.7,3081.2,3.24547]
[1731716264010,3.24475,3081.9,3081.3,0.06489873]
[1731716264189,3.24492,3081.8,3081.5,0.7953]
[1731716264519,3.24517,3081.5,3081.4,0.30648987]
[1731716264690,3.24517,3081.5,3081.2,0.7953]
[1731716265182,3.2453,3081.4,3081.2,0.7953]
[1731716265485,3.24518,3081.5,3081.2,0.7953]
[1731716265685,3.24538,3081.3,3080.9,0.7953]
[1731716265993,3.2456,3081.1,3080.9,0.7953]
[1731716266431,3.24569,3081.0,3080.4,0.7953]
[1731716266734,3.24531,3081.4,3080.4,0.7953]
[1731716266735,3.24563,3081.1,3080.4,0.7953]
[1731716267032,3.24587,3080.9,3080.4,0.7953]
[1731716267231,3.24587,3080.9,3080.5,0.404172]
[1731716267429,3.24604,3080.7,3080.5,0.404172]
[1731716267629,3.24604,3080.7,3080.4,0.7953]
[1731716267829,3.24595,3080.8,3080.4,0.7953]
[1731716268054,3.24602,3080.7,3080.4,0.7953]
[1731716268397,3.24593,3080.8,3080.4,0.7953]
[1731716268598,3.24593,3080.8,3080.4,1.19948]
[1731716269423,3.24593,3080.8,3080.4,0.7953]
[1731716269761,3.24644,3080.3,3080.1,0.7953]
[1731716270429,3.24624,3080.5,3080.1,0.7953]
[1731716270751,3.24624,3080.5,3080.1,1.199515]
[1731716271131,3.24644,3080.3,3080.1,1.199515]
[1731716271465,3.24644,3080.3,3080.1,0.7953]
[1731716271808,3.24654,3080.2,3079.8,0.7953]
[1731716272045,3.24644,3080.3,3079.8,0.7953]
[1731716272046,3.24669,3080.1,3079.8,0.7953]
[1731716272354,3.24669,3080.1,3079.8,1.17483]
[1731716272709,3.24644,3080.3,3079.8,1.17483]
[1731716273052,3.24626,3080.5,3079.9,0.06493008]
[1731716273275,3.24605,3080.7,3079.9,3.24677]
[1731716273550,3.24605,3080.7,3079.8,4.17483]
[1731716273551,3.24605,3080.7,3080.2,0.7953]
[1731716273907,3.24605,3080.7,3080.2,3.7953]
[1731716274137,3.24583,3080.9,3080.3,0.0649221]
[1731716274351,3.24583,3080.9,3080.5,0.7953]
[1731716274557,3.2456,3081.1,3080.5,4.10641798]
[1731716274760,3.2456,3081.1,3080.6,0.7106418]
[1731716275636,3.24543,3081.3,3080.6,3.9567418]
[1731716276131,3.24522,3081.5,3080.8,0.75]
[1731716276472,3.24522,3081.5,3080.9,3.645321]
[1731716276987,3.24527,3081.5,3080.9,0.399601]
[1731716277282,3.24536,3081.4,3080.9,0.399601]
[1731716277434,3.24527,3081.5,3081.0,0.4395431]
[1731716278734,3.24528,3081.4,3081.0,0.4395431]
[1731716279079,3.24551,3081.2,3081.0,0.4395431]
[1731716279282,3.24528,3081.4,3080.8,3.9958]
[1731716279570,3.24528,3081.4,3080.8,0.75]
[1731716279784,3.24528,3081.4,3080.8,3.99588]
[1731716279934,3.24528,3081.4,3080.9,3.399588]
[1731716280436,3.24523,3081.5,3080.9,6.645368]
[1731716281770,3.24523,3081.5,3080.9,0.399588]
[1731716281986,3.24532,3081.4,3081.0,0.4149588]
[1731716282363,3.24539,3081.3,3081.0,0.4149588]
[1731716282538,3.24539,3081.3,3080.9,0.399588]
[1731716283435,0.2336,3081.6,3080.8,0.75]
[1731716283665,3.24584,3080.9,3080.4,3.0]
[1731716283877,3.24584,3080.9,3080.5,0.763]
[1731716284098,3.2456,3081.1,3080.6,3.0]
[1731716286496,3.24583,3080.9,3080.5,1.46394]
[1731716286886,3.24632,3080.5,3080.2,0.763]
[1731716287095,3.24643,3080.3,3079.5,0.763]
[1731716287402,3.24664,3080.1,3080.0,0.763]
[1731716287591,3.24613,3080.6,3080.0,4.00974]
[1731716287787,3.24591,3080.8,3080.2,0.763]
[1731716288418,3.24604,3080.7,3080.2,0.763]
[1731716288708,3.24591,3080.8,3080.3,0.400957]
[1731716288862,3.24572,3081.0,3080.4,3.24632]
[1731716289073,3.24572,3081.0,3080.2,0.763]
[1731716289285,3.24598,3080.8,3080.2,3.763]
[1731716289470,3.24605,3080.7,3080.3,1.025618]
[1731716289664,3.24598,3080.8,3080.3,1.025618]
[1731716289874,6.80302878,3081.3,3079.6,0.763]
[1731716289875,3.24643,3080.3,3079.6,0.763]
[1731716290081,3.24682,3080.0,3079.6,0.763]
[1731716290917,3.24701,3079.8,3079.6,0.763]
[1731716291060,6.80398878,3080.4,3079.2,0.763]
[1731716291260,3.24703,3079.8,3079.3,0.06494203]
[1731716291472,3.24713,3079.7,3079.2,0.763]
[1731716291678,3.24703,3079.8,3079.3,0.06494261]
[1731716291878,3.24689,3079.9,3079.3,0.40755326]
[1731716292118,3.24718,3079.6,3079.3,0.40755326]
[1731716292418,3.24718,3079.6,3079.2,3.763]
[1731716293120,3.24718,3079.6,3079.2,0.763]
[1731716295033,3.24709,3079.7,3079.2,3.763]
[1731716295303,3.24699,3079.8,3079.2,4.464068]
[1731716295452,3.24699,3079.8,3079.3,0.06494267]
[1731716296253,3.24719,3079.6,3079.2,4.464068]
[1731716296450,3.24719,3079.6,3079.3,1.0959288]
[1731716297012,3.24719,3079.6,3079.2,0.763]
[1731716297516,3.24711,3079.7,3078.9,0.763]
[1731716297823,3.2478,3079.0,3078.9,0.763]
[1731716298488,3.24764,3079.2,3078.9,0.763]
[1731716298936,3.24772,3079.1,3078.9,0.763]
[1731716299145,0.2336,3079.3,3078.5,0.763]
[1731716299481,3.24781,3079.0,3078.5,0.763]
[1731716299610,6.49487,3079.4,3078.5,0.763]
[1731716299813,6.49487,3079.4,3078.6,3.31309384]
[1731716299814,3.2476,3079.2,3078.6,3.31309384]
[1731716300055,3.2476,3079.2,3078.7,0.40760938]
[1731716300754,3.2474,3079.4,3078.9,0.763]
[1731716300913,3.24749,3079.3,3078.9,0.763]
[1731716301114,6.55759878,3080.1,3078.9,0.763]
[1731716301115,3.24729,3079.5,3078.9,0.763]
[1731716301349,3.24738,3079.4,3078.9,3.763]
[1731716301549,3.24721,3079.6,3079.0,0.06495012]
[1731716301550,3.24729,3079.5,3079.0,0.06495012]
[1731716301759,3.24729,3079.5,3079.1,0.70758301]
[1731716302139,3.24745,3079.4,3079.1,0.70758301]
[1731716302347,3.24818,3078.7,3078.6,0.763]
[1731716302669,3.24818,3078.7,3078.3,0.763]
[1731716302881,3.48133,3079.1,3078.3,0.763]
[1731716303060,3.2478,3079.0,3078.4,3.31333196]
[1731716303262,3.24773,3079.1,3078.5,3.6558732]
[1731716303466,3.24749,3079.3,3078.6,0.7943]
[1731716303642,3.2473,3079.5,3078.6,1.23931732]
[1731716303843,0.2336,3079.7,3078.6,3.7943]
[1731716304050,3.24778,3079.1,3078.6,0.7943]
[1731716304242,6.49508,3079.3,3078.6,4.04251]
[1731716304462,3.24722,3079.6,3078.6,0.7943]
[1731716304763,3.24739,3079.4,3078.9,0.7943]
[1731716304960,3.24722,3079.6,3079.0,0.404224]
[1731716305128,3.24723,3079.6,3078.9,4.1071204]
[1731716305328,3.24728,3079.5,3078.9,4.1071204]
[1731716305528,3.24723,3079.6,3079.0,0.41071204]
[1731716305775,3.24723,3079.6,3079.0,3.65851204]
[1731716306786,3.24739,3079.4,3079.0,0.41071204]
[1731716306988,3.24739,3079.4,3078.9,0.7943]
[1731716307149,3.24739,3079.4,3078.2,3.57333]
[1731716307150,3.24819,3078.7,3078.1,4.36768]
[1731716307334,3.24793,3078.9,3078.2,3.24855]
[1731716307674,3.24793,3078.9,3078.4,0.7943]
[1731716308260,3.24773,3079.1,3078.4,0.7943]
[1731716308465,3.24781,3079.0,3078.4,4.04267]
[1731716308670,3.24781,3079.0,3078.4,4.771781]
[1731716309384,3.2477,3079.1,3078.6,0.7943]
[1731716309590,3.24754,3079.3,3078.6,0.7943]
[1731716309728,3.24766,3079.2,3078.6,0.7943]
[1731716309931,3.24771,3079.1,3078.6,1.2779658]
[1731716310536,3.24754,3079.3,3078.7,3.31307705]
[1731716310730,3.24754,3079.3,3078.7,3.24812]
[1731716310731,6.49513,3079.3,3078.7,3.24812]
[1731716310984,3.24771,3079.1,3078.8,0.38680941]
[1731716311162,3.24787,3079.0,3078.6,0.7943]
[1731716311366,3.24767,3079.2,3078.6,0.7943]
[1731716311573,3.24771,3079.1,3078.6,1.498557]
[1731716311787,3.24797,3078.9,3078.4,3.06495763]
[1731716312094,3.24777,3079.1,3078.4,6.31336763]
[1731716312272,3.24791,3078.9,3078.5,1.03561276]
[1731716313285,3.24758,3079.3,3078.3,3.7943]
[1731716313584,3.24812,3078.7,3078.3,0.7943]
[1731716313789,3.24738,3079.4,3078.3,0.7943]
[1731716313943,3.24844,3078.4,3078.0,3.7943]
[1731716314388,3.24824,3078.6,3078.0,0.7943]
[1731716314629,3.24805,3078.8,3078.1,3.31361541]
[1731716314830,3.24805,3078.8,3078.2,3.7943]
[1731716315138,3.24812,3078.7,3078.2,3.7943]
[1731716315299,3.24805,3078.8,3078.2,7.75373154]
[1731716315732,3.24834,3078.5,3078.2,4.5700569]
[1731716316032,3.24818,3078.7,3078.2,1.50509154]
[1731716316237,3.24818,3078.7,3078.2,0.7943]
[1731716316784,3.24811,3078.8,3078.2,0.7943]
[1731716317338,3.24813,3078.7,3078.2,0.7943]
[1731716317844,3.248,3078.9,3078.2,0.7943]
[1731716318127,3.24784,3079.0,3078.5,0.7943]
[1731716318498,3.24762,3079.2,3078.6,3.06496201]
[1731716318697,0.2336,3079.6,3078.6,6.31317723]
[1731716319017,3.24766,3079.2,3078.6,6.95896772]
[1731716319325,3.24758,3079.3,3078.6,6.95896772]
[1731716319483,3.24769,3079.2,3078.6,6.95896772]
[1731716319685,3.24769,3079.2,3078.7,0.78182246]
[1731716319914,3.24742,3079.4,3078.8,4.04224]
[1731716320111,3.24722,3079.6,3078.9,3.31283087]
[1731716320430,3.24722,3079.6,3079.0,0.7943]
[1731716320637,6.49449,3079.6,3079.0,3.7943]
[1731716320929,3.24731,3079.5,3079.0,3.7943]
[1731716321230,3.24731,3079.5,3079.0,4.5539033]
[1731716321621,3.24714,3079.7,3079.1,3.3125994]
[1731716323140,3.24717,3079.6,3079.1,3.3125994]
[1731716323701,3.24717,3079.6,3079.1,3.24765]
[1731716323897,3.24717,3079.6,3079.1,4.40147754]
[1731716324293,3.24687,3079.9,3079.2,3.312527]
[1731716324624,0.2336,3080.1,3079.0,0.7943]
[1731716324625,3.55759878,3079.7,3079.0,0.7943]
[1731716324824,3.2477,3079.1,3078.7,0.7531]
[1731716325836,3.24762,3079.2,3078.7,0.7531]
[1731716327056,3.24762,3079.2,3078.7,1.778064]
[1731716327748,0.2336,3079.6,3078.8,0.06495351]
[1731716327749,3.24723,3079.6,3078.8,0.06495351]
[1731716327900,3.24701,3079.8,3079.2,3.24758]
[1731716328418,3.2471,3079.7,3079.1,0.7531]
[1731716328615,0.2336,3080.0,3079.1,4.00079]
[1731716328616,3.48039,3080.0,3079.1,4.00079]
[1731716328852,3.24693,3079.9,3079.2,3.972448]
[1731716329000,3.24693,3079.9,3079.2,3.972368]
[1731716329207,3.24679,3080.0,3079.2,3.972368]
[1731716329529,3.24679,3080.0,3079.3,3.7200068]
[1731716329733,3.24686,3079.9,3079.3,3.7200068]
[1731716330102,3.2471,3079.7,3079.3,0.4725468]
[1731716330318,0.2336,3080.2,3079.1,0.7531]
[1731716330319,3.24669,3080.1,3079.1,0.7531]
[1731716330547,3.24669,3080.1,3079.4,3.24731]
[1731716330701,3.24669,3080.1,3079.6,3.24715]
[1731716330903,3.24622,3080.5,3080.0,3.24673]
[1731716331134,6.49216,3080.7,3080.1,0.7531]
[1731716331347,3.2463,3080.5,3080.1,0.7531]
[1731716331645,3.24604,3080.7,3080.1,0.7531]
[1731716331800,3.24623,3080.5,3080.1,0.7531]
[1731716332406,3.24604,3080.7,3080.1,0.7531]
[1731716332613,3.24613,3080.6,3080.1,0.7531]
[1731716332819,3.24604,3080.7,3080.1,0.7531]
[1731716332820,3.24629,3080.5,3080.1,0.7531]
[1731716333351,3.24636,3080.4,3080.1,0.7531]
[1731716333944,3.55759878,3081.0,3079.7,0.7531]
[1731716333945,3.24686,3079.9,3079.7,0.7531]
[1731716336045,3.24652,3080.3,3079.7,0.7531]
[1731716336208,3.24678,3080.0,3079.7,0.7531]
[1731716338131,3.24655,3080.2,3079.7,0.7531]
[1731716338336,3.24666,3080.1,3079.7,0.7531]
[1731716338723,3.24675,3080.0,3079.7,0.7531]
[1731716339309,3.24696,3079.8,3079.7,0.7531]
[1731716339559,3.55759878,3079.8,3079.0,0.7531]
[1731716339853,6.49508,3079.3,3079.0,0.7531]
[1731716340059,3.2475,3079.3,3079.0,0.7531]
[1731716340265,3.2476,3079.2,3079.0,0.7531]
[1731716340556,3.24715,3079.7,3078.7,4.00116]
[1731716340557,0.2336,3079.6,3078.7,4.00116]
[1731716340772,3.24728,3079.5,3078.7,0.7531]
[1731716340910,3.24703,3079.8,3079.1,3.24769]
[1731716341111,3.24703,3079.8,3079.3,4.00057]
[1731716341765,3.24682,3080.0,3079.3,4.00057]
[1731716341911,3.24659,3080.2,3079.6,3.24716]
[1731716342106,3.24659,3080.2,3079.4,3.31232048]